{"text_format":"3","workbook":"xlsx","n_sheets":6,"sheets":["الفصل الدراسي","الساعات المعتمدة","الميزانية","صافي المصروفات الشهرية","مصروفات الفصل الدراسي","الكتب"],"not_rendered":{"defined_names":21},"read":"whole","date_system":"1900"}

{"sheet":"الفصل الدراسي","index":0,"n_rows":29,"n_cols":9,"rows_kept":29,"merged":[[2,3,2,4]]}
[null,"جدول الفصل الخاص بي"]
[null,"فصل الخريف الدراسي"]
[null,null,"وقت البدء","الفاصل الزمني",null,"السنة"]
[null,null,"09:00:00",60,"(بالدقائق)"]
[null,"الوقت ","الاثنين","الثلاثاء","الأربعاء","الخميس","الجمعة","السبت","الأحد"]
[null,{"$f":"وقت_البدء+TIME(0,(ROW(A1)-1)*الفاصل_الزمني,0)","v":"09:00:00"},"الإفطار","الإفطار","الإفطار","الإفطار","الإفطار"]
[null,"10:00:00","الأعمال: محاضرة في المبنى ب، الغرفة 256"]
[null,"11:00:00",{"$nulls":3},"الفيزياء: المختبر \nالمبني هـ، الغرفة 309"]
[null,"12:00:00"]
[null,"13:00:00"]
[null,"14:00:00"]
[null,"15:00:00"]
[null,"16:00:00"]
[null,"17:00:00"]
[null,"18:00:00"]
[null,"19:00:00"]
[null,"20:00:00"]
[null,"21:00:00"]
[null,"22:00:00"]
[null,"23:00:00"]
[null,1]
[null,1.0416666666666665]
[null,1.0833333333333335]
[null,1.125]
[null,1.1666666666666665]
[null,1.2083333333333335]
[null,1.25]
[null,1.2916666666666665]
[null,1.3333333333333335]

{"sheet":"الساعات المعتمدة","index":1,"n_rows":17,"n_cols":8,"rows_kept":17}
[null,"الكلية"]
[null,"مخطط الساعات المعتمدة"]
[null,"اسم الدرجة العلمية",{"$f":"السنة","v":"السنة"}]
[null,"التقدم الإجمالي",null,"التقدم الإجمالي"]
[null,{"$f":"AVERAGE(الجدول1[الدرجة])","v":3.5},{"$f":"IFERROR(TEXT(AVERAGEIF(الجدول1[مكتملة],\"نعم\",الجدول1[الدرجة]),\"0.00\"),\"0.00\")&\" المعدل العام الحالي\"","v":"3.50 المعدل العام الحالي"},{"$f":"COUNTIF(الجدول1[مكتملة],\"نعم\")/COUNTA(الجدول1[عنوان المادة الدراسية])","v":0.6666666666666666},{"$f":"TEXT(COUNTIF(الجدول1[مكتملة],\"نعم\")/COUNTA(الجدول1[عنوان المادة الدراسية]),\"0%\")&\" مكتملة\"","v":"67% مكتملة"}]
[null,"ملاحظة: سيتم ملء ملخص الساعات المعتمدة التالي تلقائياً بالإدخالات التي تضيفها إلى جدول \"المواد الدراسية الجامعية\" الموجود أدناه"]
[null,"المتطلبات","إجمالي الساعات المعتمدة","المكتسبة","المطلوبة"]
[null,"تخصص أكاديمي رئيسي",{"$f":"IF(SUMIF(الجدول1[المتطلبات],B8,الجدول1[الساعات المعتمدة])=0,\"0\",SUMIF(الجدول1[المتطلبات],B8,الجدول1[الساعات المعتمدة]))","v":4},{"$f":"SUMIFS(الجدول1[الساعات المعتمدة],الجدول1[المتطلبات],B8,الجدول1[مكتملة],\"نعم\")","v":4},{"$f":"SUMIF(الجدول1[المتطلبات],B8,الجدول1[الساعات المعتمدة])-SUMIFS(الجدول1[الساعات المعتمدة],الجدول1[المتطلبات],B8,الجدول1[مكتملة],\"نعم\")","v":0}]
[null,"تخصص أكاديمي فرعي",{"$f":"IF(SUMIF(الجدول1[المتطلبات],B9,الجدول1[الساعات المعتمدة])=0,\"0\",SUMIF(الجدول1[المتطلبات],B9,الجدول1[الساعات المعتمدة]))","v":3},{"$f":"SUMIFS(الجدول1[الساعات المعتمدة],الجدول1[المتطلبات],B9,الجدول1[مكتملة],\"نعم\")","v":0},{"$f":"SUMIF(الجدول1[المتطلبات],B9,الجدول1[الساعات المعتمدة])-SUMIFS(الجدول1[الساعات المعتمدة],الجدول1[المتطلبات],B9,الجدول1[مكتملة],\"نعم\")","v":3}]
[null,"مادة دراسية اختيارية",{"$f":"IF(SUMIF(الجدول1[المتطلبات],B10,الجدول1[الساعات المعتمدة])=0,\"0\",SUMIF(الجدول1[المتطلبات],B10,الجدول1[الساعات المعتمدة]))","v":2},{"$f":"SUMIFS(الجدول1[الساعات المعتمدة],الجدول1[المتطلبات],B10,الجدول1[مكتملة],\"نعم\")","v":2},{"$f":"SUMIF(الجدول1[المتطلبات],B10,الجدول1[الساعات المعتمدة])-SUMIFS(الجدول1[الساعات المعتمدة],الجدول1[المتطلبات],B10,الجدول1[مكتملة],\"نعم\")","v":0}]
[null,"دراسة عامة",{"$f":"IF(SUMIF(الجدول1[المتطلبات],B11,الجدول1[الساعات المعتمدة])=0,\"0\",SUMIF(الجدول1[المتطلبات],B11,الجدول1[الساعات المعتمدة]))","v":"0"},{"$f":"SUMIFS(الجدول1[الساعات المعتمدة],الجدول1[المتطلبات],B11,الجدول1[مكتملة],\"نعم\")","v":0},{"$f":"SUMIF(الجدول1[المتطلبات],B11,الجدول1[الساعات المعتمدة])-SUMIFS(الجدول1[الساعات المعتمدة],الجدول1[المتطلبات],B11,الجدول1[مكتملة],\"نعم\")","v":0}]
[null,"الإجمالي",{"$f":"SUBTOTAL(109,$C$8:$C$11)","v":9},{"$f":"SUBTOTAL(109,$D$8:$D$11)","v":6},{"$f":"SUBTOTAL(109,$E$8:$E$11)","v":3}]
[null,"المواد_الدراسية"]
[null,"عنوان المادة الدراسية","رقم المادة الدراسية","المتطلبات","الساعات المعتمدة","مكتملة","الدرجة","الفصل الدراسي"]
[null,"المادة الدراسية 1","الرقم","تخصص أكاديمي رئيسي",4,"نعم",{"v":4,"d":"4.0"},"الفصل الدراسي 1"]
[null,"المادة الدراسية 2","الرقم","تخصص أكاديمي فرعي",3,"لا",null,"الفصل الدراسي 1"]
[null,"المادة الدراسية 3","الرقم","مادة دراسية اختيارية",2,"نعم",{"v":3,"d":"3.0"},"الفصل الدراسي 1"]

{"sheet":"الميزانية","index":2,"n_rows":15,"n_cols":4,"rows_kept":15,"merged":[[5,1,5,2]]}
[null,{"$f":"الكلية","v":"الكلية"}]
[null,"متعقب الميزانية"]
[null,"الميزانية الخاصة بي",{"$f":"السنة","v":"السنة"}]
[null,"النسبة المئوية للدخل الذي تم إنفاقه"]
[null,{"$f":"صافي_المصروفات_الشهرية/صافي_الدخل_الشهري","v":{"v":0.7454545454545455,"d":"75%"}}]
[null,{"$f":"B5","v":0.7454545454545455}]
[null,"صافي الدخل الشهري","صافي المصروفات الشهرية","الرصيد"]
[null,{"$f":"C10","v":{"v":2750,"d":"ر.س.‏ 2,750"}},{"$f":"'صافي المصروفات الشهرية'!C4+'مصروفات الفصل الدراسي'!D4","v":{"v":2050,"d":"ر.س.‏ 2,050"}},{"$f":"صافي_الدخل_الشهري-صافي_المصروفات_الشهرية","v":{"v":700,"d":"ر.س.‏ 700"}}]
[null,"الأشهر في الفصل الدراسي",4]
[null,"الدخل الشهري",{"$f":"SUM(الدخل_الشهري[المبلغ])","v":{"v":2750,"d":"ر.س.‏ 2,750"}}]
[null,"العنصر","المبلغ"]
[null,"الدخل الثابت",{"v":1500,"d":" 1,500ر.س.‏"}]
[null,"المساعدة المالية",{"v":500,"d":" 500ر.س.‏"}]
[null,"القروض",{"v":500,"d":" 500ر.س.‏"}]
[null,"مصادر الدخل الأخرى",{"v":250,"d":" 250ر.س.‏"}]

{"sheet":"صافي المصروفات الشهرية","index":3,"n_rows":15,"n_cols":3,"rows_kept":15}
[null,{"$f":"الكلية","v":"الكلية"}]
[null,"متعقب الميزانية"]
[null,"المصروفات الشهرية",{"$f":"السنة","v":"السنة"}]
[null,"المصروفات الشهرية",{"$f":"SUM(المصروفات_الشهرية[المبلغ])","v":{"v":1675,"d":"ر.س.‏ 1,675"}}]
[null,"العنصر","المبلغ"]
[null,"الإيجار",{"v":300,"d":" 300ر.س.‏"}]
[null,"المرافق",{"v":50,"d":" 50ر.س.‏"}]
[null,"الهاتف الجوال",{"v":75,"d":" 75ر.س.‏"}]
[null,"البقالة",{"v":250,"d":" 250ر.س.‏"}]
[null,"مصروفات السيارة",{"v":50,"d":" 50ر.س.‏"}]
[null,"قروض الطلاب",{"v":500,"d":" 500ر.س.‏"}]
[null,"بطاقات الائتمان",{"v":275,"d":" 275ر.س.‏"}]
[null,"التأمين",{"v":125,"d":" 125ر.س.‏"}]
[null,"الترفيه",{"v":50,"d":" 50ر.س.‏"}]
[null,"مصروفات متنوعة",{"v":0,"d":" 0ر.س.‏"}]

{"sheet":"مصروفات الفصل الدراسي","index":4,"n_rows":11,"n_cols":4,"rows_kept":11}
[null,{"$f":"الكلية","v":"الكلية"}]
[null,"متعقب الميزانية"]
[null,"مصروفات الفصل الدراسي",{"$f":"السنة","v":"السنة"}]
[null,"مصروفات الفصل الدراسي (الإجمالي/ لكل شهر)",{"$f":"SUM(مصروفات_الفصل_الدراسي[المبلغ])","v":{"v":1500,"d":"ر.س.‏ 1,500"}},{"$f":"SUM(مصروفات_الفصل_الدراسي[كل شهر])","v":{"v":375,"d":"ر.س.‏ 375"}}]
[null,"العنصر","المبلغ","كل شهر"]
[null,"الرسوم الدراسية",{"v":750,"d":" 750ر.س.‏"},{"$f":"مصروفات_الفصل_الدراسي[[#This Row],[المبلغ]]/الشهور_في_الفصل_الدراسي","v":{"v":187.5,"d":" 188ر.س.‏"}}]
[null,"رسوم استخدام المختبر",{"v":250,"d":" 250ر.س.‏"},{"$f":"مصروفات_الفصل_الدراسي[[#This Row],[المبلغ]]/الشهور_في_الفصل_الدراسي","v":{"v":62.5,"d":" 63ر.س.‏"}}]
[null,"الكتب",{"v":500,"d":" 500ر.س.‏"},{"$f":"مصروفات_الفصل_الدراسي[[#This Row],[المبلغ]]/الشهور_في_الفصل_الدراسي","v":{"v":125,"d":" 125ر.س.‏"}}]
[null,"الودائع",{"v":0,"d":" 0ر.س.‏"},{"$f":"مصروفات_الفصل_الدراسي[[#This Row],[المبلغ]]/الشهور_في_الفصل_الدراسي","v":{"v":0,"d":" 0ر.س.‏"}}]
[null,"وسائل النقل",{"v":0,"d":" 0ر.س.‏"},{"$f":"مصروفات_الفصل_الدراسي[[#This Row],[المبلغ]]/الشهور_في_الفصل_الدراسي","v":{"v":0,"d":" 0ر.س.‏"}}]
[null,"رسوم أخرى",{"v":0,"d":" 0ر.س.‏"},{"$f":"مصروفات_الفصل_الدراسي[[#This Row],[المبلغ]]/الشهور_في_الفصل_الدراسي","v":{"v":0,"d":" 0ر.س.‏"}}]

{"sheet":"الكتب","index":5,"n_rows":7,"n_cols":7,"rows_kept":7}
[null,{"$f":"الكلية","v":"الكلية"}]
[null,"متعقب الكتب"]
[null,"قائمة الكتب"]
[null,"العنوان","الكاتب","المادة الدراسية","من أين يجب شراؤه؟","رقم ISBN","الملاحظات"]
[null,"عنوان الكتاب","الكاتب","المادة الدراسية","الموقع","الرقم"]
[null,"عنوان الكتاب","الكاتب","المادة الدراسية","الموقع","الرقم"]
[null,"عنوان الكتاب","الكاتب","المادة الدراسية","الموقع","الرقم"]